[Event "NJSK 2023 Jeugd C"]
[Site "Almelo, Netherlands"]
[Date "2023.05.04"]
[Round "7.3"]
[White "Wink, Luka"]
[Black "Krylov, Philippe"]
[Result "1/2-1/2"]
[TimeControl "90min/40moves + 30min + 30sec/move"]
[WhiteElo "1849"]
[BlackElo "1858"]

1. e4 {[%clk 01:29:44]} {[%emt 00:01:15]} c6 {[%clk 01:30:09]} {[%emt
00:00:52]} 2. d4 {[%clk 01:30:10]} {[%emt 00:00:03]} d5 {[%clk 01:30:36]}
{[%emt 00:00:04]} 3. e5 {[%clk 01:30:36]} {[%emt 00:00:04]} Bf5 {[%clk
01:31:03]} {[%emt 00:00:03]} 4. h4 {[%clk 01:31:00]} {[%emt 00:00:04]} h5
{[%clk 01:31:28]} {[%emt 00:00:05]} 5. Bd3 {[%clk 01:31:23]} {[%emt 00:00:07]}
Bxd3 {[%clk 01:31:48]} {[%emt 00:00:10]} 6. Qxd3 {[%clk 01:31:47]} {[%emt
00:00:06]} Qa5+ {[%clk 01:29:53]} {[%emt 00:02:26]} 7. Nd2 {[%clk 01:31:58]}
{[%emt 00:00:19]} e6 {[%clk 01:30:18]} {[%emt 00:00:05]} 8. Ngf3 {[%clk
01:32:02]} {[%emt 00:00:26]} Qa6 {[%clk 01:30:36]} {[%emt 00:00:12]} 9. c4
{[%clk 01:32:11]} {[%emt 00:00:20]} Ne7 {[%clk 01:30:57]} {[%emt 00:00:09]} 10.
b3 {[%clk 01:31:57]} {[%emt 00:00:44]} Nf5 {[%clk 01:31:17]} {[%emt 00:00:10]}
11. O-O {[%clk 01:31:35]} {[%emt 00:00:51]} Be7 {[%clk 01:31:37]} {[%emt
00:00:11]} 12. a4 {[%clk 01:31:46]} {[%emt 00:00:19]} Qa5 {[%clk 01:30:24]}
{[%emt 00:01:43]} 13. Ba3 {[%clk 01:31:53]} {[%emt 00:00:22]} Bxa3 {[%clk
01:30:38]} {[%emt 00:00:16]} 14. Rxa3 {[%clk 01:32:18]} {[%emt 00:00:06]} Na6
{[%clk 01:30:58]} {[%emt 00:00:11]} 15. b4 {[%clk 01:30:23]} {[%emt 00:02:24]}
Nxb4 {[%clk 01:31:03]} {[%emt 00:00:24]} 16. Qc3 {[%clk 01:30:47]} {[%emt
00:00:06]} c5 {[%clk 01:31:29]} {[%emt 00:00:05]} 17. cxd5 {[%clk 01:31:07]}
{[%emt 00:00:10]} cxd4 {[%clk 01:31:55]} {[%emt 00:00:05]} 18. Nxd4 {[%clk
01:31:14]} {[%emt 00:00:23]} Nxd4 {[%clk 01:32:08]} {[%emt 00:00:17]} 19. Qxd4
{[%clk 01:31:40]} {[%emt 00:00:05]} Nc2 {[%clk 01:32:33]} {[%emt 00:00:05]} 20.
Nc4 {[%clk 01:31:54]} {[%emt 00:00:15]} Nxd4 {[%clk 01:32:56]} {[%emt
00:00:08]} 21. Nxa5 {[%clk 01:32:20]} {[%emt 00:00:04]} b6 {[%clk 01:33:21]}
{[%emt 00:00:05]} 22. Nb7 {[%clk 01:31:03]} {[%emt 00:01:46]} Nf5 {[%clk
01:33:43]} {[%emt 00:00:08]} 23. Rd1 {[%clk 01:29:29]} {[%emt 00:02:03]}
1/2-1/2

[Event "NJSK 2023 Jeugd C"]
[Site "Almelo, Netherlands"]
[Date "2023.05.04"]
[Round "7.4"]
[White "Roolvink, William"]
[Black "Zecha, Oscar"]
[Result "1/2-1/2"]
[TimeControl "90min/40moves + 30min + 30sec/move"]
[WhiteElo "1852"]
[BlackElo "1879"]

1. e4 {[%clk 01:30:26]} {[%emt 00:00:33]} e5 {[%clk 01:30:59]} {[%emt
00:00:01]} 2. Nf3 {[%clk 01:30:44]} {[%emt 00:00:12]} Nc6 {[%clk 01:31:28]}
{[%emt 00:00:01]} 3. Bb5 {[%clk 01:31:13]} Nf6 {[%clk 01:31:50]} {[%emt
00:00:07]} 4. O-O {[%clk 01:31:40]} {[%emt 00:00:03]} Nxe4 {[%clk 01:32:15]}
{[%emt 00:00:05]} 5. Re1 {[%clk 01:32:00]} {[%emt 00:00:10]} Nd6 {[%clk
01:32:39]} {[%emt 00:00:06]} 6. Nxe5 {[%clk 01:32:26]} {[%emt 00:00:04]} Be7
{[%clk 01:33:08]} {[%emt 00:00:01]} 7. Bf1 {[%clk 01:31:32]} {[%emt 00:01:25]}
Nf5 {[%clk 01:32:45]} {[%emt 00:00:53]} 8. Nf3 {[%clk 01:31:57]} {[%emt
00:00:04]} O-O {[%clk 01:33:02]} {[%emt 00:00:12]} 9. d4 {[%clk 01:32:25]}
{[%emt 00:00:03]} d5 {[%clk 01:33:28]} {[%emt 00:00:04]} 10. c3 {[%clk
01:32:42]} {[%emt 00:00:13]} Nh4 {[%clk 01:32:36]} {[%emt 00:01:22]} 11. Nxh4
{[%clk 01:18:02]} {[%emt 00:15:09]} Bxh4 {[%clk 01:32:43]} {[%emt 00:00:23]} 12.
Bd3 {[%clk 01:18:12]} {[%emt 00:00:20]} g6 {[%emt 00:03:11]} 13. Nd2 {[%clk
01:12:34]} {[%emt 00:06:05]} Re8 {[%clk 01:28:56]} {[%emt 00:01:39]} 14. Rxe8+
{[%clk 01:12:35]} {[%emt 00:00:30]} Qxe8 {[%clk 01:29:25]} 15. Nf1 {[%clk
01:12:18]} {[%emt 00:00:47]} Be6 {[%clk 01:25:10]} {[%emt 00:04:45]} 16. Bd2
{[%clk 01:09:55]} {[%emt 00:02:54]} Qd7 {[%clk 01:24:40]} {[%emt 00:00:59]} 17.
Qc2 {[%clk 01:07:03]} {[%emt 00:03:22]} Ne7 {[%clk 01:21:42]} {[%emt 00:03:27]}
18. Ne3 {[%clk 01:01:29]} {[%emt 00:06:05]} b6 {[%clk 01:12:08]} {[%emt
00:10:05]} 19. g3 {[%clk 00:49:15]} {[%emt 00:12:43]} Bf6 {[%clk 01:12:13]}
{[%emt 00:00:25]} 20. Ng2 {[%clk 00:49:25]} {[%emt 00:00:19]} c5 {[%clk
01:10:31]} {[%emt 00:02:13]} 21. dxc5 {[%clk 00:41:22]} {[%emt 00:08:33]} bxc5
{[%clk 01:10:35]} {[%emt 00:00:26]} 22. Nf4 {[%clk 00:36:39]} {[%emt 00:05:13]}
c4 {[%clk 01:06:45]} {[%emt 00:04:20]} 23. Bf1 {[%clk 00:34:49]} {[%emt
00:02:19]} Bf5 {[%clk 01:06:39]} {[%emt 00:00:37]} 24. Qd1 {[%clk 00:34:28]}
{[%emt 00:00:51]} Rb8 {[%clk 01:06:48]} {[%emt 00:00:22]} 25. b3 {[%clk
00:33:51]} {[%emt 00:01:06]} Nc6 {[%clk 00:48:10]} {[%emt 00:19:08]} 26. bxc4
{[%clk 00:17:27]} {[%emt 00:16:54]} dxc4 {[%clk 00:46:21]} {[%emt 00:02:20]} 27.
Bxc4 {[%emt 00:05:44]} Rd8 {[%clk 00:42:59]} 28. Nd5 {[%clk 00:11:48]} {[%emt
00:04:48]} Be7 {[%clk 00:33:29]} {[%emt 00:09:59]} 29. Qe1 {[%clk 00:09:27]}
{[%emt 00:02:50]} Re8 {[%clk 00:32:00]} {[%emt 00:02:00]} 30. Nxe7+ {[%clk
00:09:24]} {[%emt 00:00:32]} Rxe7 {[%clk 00:32:29]} {[%emt 00:00:01]} 31. Be3
{[%clk 00:09:33]} {[%emt 00:00:21]} Ne5 {[%clk 00:32:38]} {[%emt 00:00:21]} 32.
Be2 {[%clk 00:09:30]} {[%emt 00:00:32]} Qc6 {[%clk 00:32:27]} {[%emt 00:00:42]}
33. Qf1 {[%clk 00:02:49]} {[%emt 00:07:09]} Qc8 {[%clk 00:28:30]} {[%emt
00:04:28]} 34. f4 {[%clk 00:00:45]} {[%emt 00:02:34]} Qxc3 {[%clk 00:27:10]}
{[%emt 00:01:51]} 35. Bf2 {[%clk 00:00:44]} {[%emt 00:00:31]} Ng4 {[%clk
00:23:15]} {[%emt 00:04:25]} 36. Rd1 {[%clk 00:00:41]} {[%emt 00:00:32]} Ne3
{[%clk 00:21:43]} {[%emt 00:02:03]} 37. Rd8+ {[%clk 00:00:37]} {[%emt
00:00:33]} Kg7 {[%clk 00:22:12]} 38. Qe1 {[%clk 00:00:37]} {[%emt 00:00:31]}
Qb2 {[%clk 00:21:16]} {[%emt 00:01:26]} 39. Bf3 {[%clk 00:00:37]} {[%emt
00:00:30]} Ng4 {[%clk 00:19:29]} {[%emt 00:02:17]} 40. Qf1 {[%clk 00:00:54]}
{[%emt 00:00:13]} Nxf2 {[%clk 00:17:02]} {[%emt 00:02:58]} 41. Qxf2 {[%clk
00:01:05]} {[%emt 00:00:17]} Qa1+ {[%clk 00:11:07]} {[%emt 00:06:26]} 42. Rd1
{[%clk 00:01:07]} {[%emt 00:00:27]} Qf6 {[%clk 00:09:38]} {[%emt 00:02:00]} 43.
Qd4 {[%clk 00:01:09]} {[%emt 00:00:27]} Re1+ {[%clk 00:05:29]} {[%emt
00:04:39]} 44. Kf2 {[%emt 00:00:55]} Rxd1 {[%emt 00:00:14]} 1/2-1/2

[Event "NJSK 2023 Jeugd C"]
[Site "Almelo, Netherlands"]
[Date "2023.05.04"]
[Round "7.5"]
[White "Zhu, Chenwu"]
[Black "Van Batenburg, Mees"]
[Result "1/2-1/2"]
[TimeControl "90min/40moves + 30min + 30sec/move"]
[WhiteElo "2052"]
[BlackElo "2054"]

1. e4 {[%clk 01:30:59]} c5 {[%clk 01:30:57]} {[%emt 00:00:04]} 2. Nf3 {[%clk
01:31:25]} {[%emt 00:00:03]} Nc6 {[%clk 01:31:25]} {[%emt 00:00:03]} 3. d4
{[%clk 01:31:51]} {[%emt 00:00:04]} cxd4 {[%clk 01:31:52]} {[%emt 00:00:03]} 4.
Nxd4 {[%clk 01:32:17]} {[%emt 00:00:04]} e5 {[%clk 01:32:19]} {[%emt 00:00:02]}
5. Nb5 {[%clk 01:32:42]} {[%emt 00:00:05]} d6 {[%clk 01:32:47]} {[%emt
00:00:02]} 6. N1c3 {[%clk 01:33:06]} {[%emt 00:00:06]} a6 {[%clk 01:33:15]}
{[%emt 00:00:03]} 7. Na3 {[%clk 01:33:31]} {[%emt 00:00:05]} Be6 {[%clk
01:33:43]} {[%emt 00:00:02]} 8. Nc4 {[%clk 01:33:51]} {[%emt 00:00:11]} Rb8
{[%clk 01:34:11]} {[%emt 00:00:02]} 9. Nd5 {[%clk 01:29:38]} {[%emt 00:04:42]}
Nf6 {[%clk 01:34:20]} {[%emt 00:00:21]} 10. Bg5 {[%clk 01:28:11]} {[%emt
00:01:57]} Bxd5 {[%clk 01:34:37]} {[%emt 00:00:13]} 11. Bxf6 {[%clk 01:26:04]}
{[%emt 00:02:37]} gxf6 {[%clk 01:28:52]} {[%emt 00:06:16]} 12. Qxd5 {[%clk
01:21:50]} {[%emt 00:04:44]} Nb4 {[%clk 01:28:34]} {[%emt 00:00:48]} 13. Qd2
{[%clk 01:20:42]} {[%emt 00:01:37]} d5 {[%clk 01:26:59]} {[%emt 00:02:05]} 14.
exd5 {[%clk 01:20:26]} {[%emt 00:00:46]} Qxd5 {[%clk 01:27:08]} {[%emt
00:00:22]} 15. Qxd5 {[%clk 01:20:03]} {[%emt 00:00:53]} Nxd5 {[%emt 00:01:04]}
16. O-O-O {[%clk 01:19:35]} Rd8 {[%clk 01:27:26]} {[%emt 00:00:34]} 17. Bd3
{[%clk 01:06:15]} {[%emt 00:13:50]} Kd7 {[%clk 00:53:31]} {[%emt 00:34:26]} 18.
Bxh7 {[%clk 00:52:26]} {[%emt 00:14:18]} Bh6+ {[%clk 00:48:39]} {[%emt
00:05:23]} 19. Kb1 {[%clk 00:52:19]} {[%emt 00:00:37]} Ke6 {[%clk 00:48:59]}
{[%emt 00:00:10]} 20. Be4 {[%clk 00:52:01]} {[%emt 00:00:48]} f5 {[%clk
00:48:54]} {[%emt 00:00:35]} 21. Bxd5+ {[%clk 00:49:23]} {[%emt 00:03:07]} Rxd5
{[%clk 00:49:02]} {[%emt 00:00:22]} 22. Rxd5 {[%clk 00:47:34]} {[%emt
00:02:19]} Kxd5 {[%clk 00:49:27]} {[%emt 00:00:05]} 23. b3 {[%clk 00:47:19]}
{[%emt 00:00:46]} b5 {[%clk 00:45:29]} {[%emt 00:04:28]} 24. Nb2 {[%clk
00:46:47]} {[%emt 00:01:02]} e4 {[%clk 00:45:18]} {[%emt 00:00:41]} 25. c4+
{[%clk 00:46:02]} {[%emt 00:01:15]} Kd4 {[%clk 00:39:32]} {[%emt 00:06:16]} 26.
Rd1+ {[%clk 00:44:01]} {[%emt 00:02:31]} Kc3 {[%clk 00:39:34]} {[%emt
00:00:29]} 27. cxb5 {[%clk 00:43:06]} {[%emt 00:01:25]} axb5 {[%clk 00:38:56]}
{[%emt 00:01:08]} 28. Rd5 {[%clk 00:42:47]} {[%emt 00:00:48]} Bg7 {[%clk
00:38:10]} {[%emt 00:01:16]} 29. h3 {[%clk 00:37:52]} {[%emt 00:05:26]} f4
{[%clk 00:37:10]} {[%emt 00:01:31]} 30. Nd1+ {[%clk 00:26:50]} {[%emt
00:11:32]} Kb4 {[%clk 00:37:29]} {[%emt 00:00:10]} 31. Rf5 {[%clk 00:25:13]}
{[%emt 00:02:07]} Bh6 {[%clk 00:35:33]} {[%emt 00:02:26]} 32. Re5 {[%clk
00:24:53]} {[%emt 00:00:50]} f5 {[%clk 00:35:53]} {[%emt 00:00:11]} 33. Rd5
{[%clk 00:15:24]} {[%emt 00:09:58]} Re8 {[%clk 00:31:58]} {[%emt 00:04:25]} 34.
Kc2 {[%clk 00:13:08]} {[%emt 00:02:46]} Rc8+ {[%clk 00:31:21]} {[%emt
00:01:07]} 35. Kb2 {[%clk 00:13:13]} {[%emt 00:00:25]} e3 {[%clk 00:30:12]}
{[%emt 00:01:39]} 36. fxe3 {[%clk 00:12:35]} {[%emt 00:01:09]} fxe3 {[%clk
00:30:30]} {[%emt 00:00:11]} 37. a3+ {[%clk 00:10:10]} {[%emt 00:02:55]} Ka5
{[%clk 00:30:56]} {[%emt 00:00:04]} 38. Rd6 {[%clk 00:09:33]} {[%emt 00:01:07]}
b4 {[%clk 00:27:56]} {[%emt 00:03:30]} 39. axb4+ {[%clk 00:09:17]} {[%emt
00:00:46]} Kxb4 {[%clk 00:28:17]} {[%emt 00:00:09]} 40. Rxh6 {[%clk 00:09:14]}
{[%emt 00:00:32]} e2 {[%clk 00:28:36]} {[%emt 00:00:11]} 41. Nf2 {[%clk
00:09:37]} {[%emt 00:00:07]} e1=N {[%clk 00:28:16]} {[%emt 00:00:51]} 42. Rh4+
{[%clk 00:09:28]} {[%emt 00:00:38]} Kb5 {[%clk 00:28:04]} {[%emt 00:00:43]} 43.
Rf4 {[%clk 00:09:25]} {[%emt 00:00:33]} Rc2+ {[%clk 00:23:01]} {[%emt
00:05:34]} 44. Ka3 {[%clk 00:09:34]} {[%emt 00:00:20]} Rc5 {[%clk 00:19:25]}
{[%emt 00:04:06]} 45. g4 {[%clk 00:09:20]} {[%emt 00:00:44]} fxg4 {[%clk
00:19:36]} {[%emt 00:00:18]} 46. hxg4 {[%clk 00:09:37]} {[%emt 00:00:12]} Nc2+
{[%clk 00:19:55]} {[%emt 00:00:11]} 47. Kb2 {[%clk 00:09:55]} {[%emt 00:00:11]}
Ne3 {[%clk 00:20:12]} {[%emt 00:00:14]} 48. Ne4 {[%clk 00:08:57]} {[%emt
00:01:29]} Rc2+ {[%clk 00:20:25]} {[%emt 00:00:17]} 49. Ka3 {[%clk 00:08:53]}
{[%emt 00:00:34]} Rg2 {[%clk 00:20:26]} {[%emt 00:00:30]} 50. Nc3+ {[%clk
00:09:04]} {[%emt 00:00:19]} Kc6 {[%clk 00:17:47]} {[%emt 00:03:08]} 51. Re4
{[%clk 00:07:43]} {[%emt 00:01:42]} Nxg4 {[%clk 00:17:35]} {[%emt 00:00:52]} 52.
b4 {[%clk 00:07:57]} {[%emt 00:00:17]} Rg3 {[%clk 00:16:32]} {[%emt 00:01:33]}
53. Kb3 {[%clk 00:07:57]} {[%emt 00:00:30]} Nf2 {[%clk 00:16:38]} {[%emt
00:00:24]} 54. Rd4 {[%clk 00:07:29]} {[%emt 00:00:58]} Rd3 {[%clk 00:15:54]}
{[%emt 00:01:14]} 55. Kc4 {[%clk 00:06:35]} {[%emt 00:01:24]} Rxd4+ {[%clk
00:12:50]} {[%emt 00:03:34]} 56. Kxd4 {[%clk 00:06:57]} {[%emt 00:00:08]} Ng4
{[%clk 00:13:08]} {[%emt 00:00:12]} 57. b5+ {[%clk 00:06:25]} {[%emt 00:01:02]}
Kb6 {[%clk 00:13:14]} {[%emt 00:00:24]} 58. Kc4 {[%clk 00:06:06]} {[%emt
00:00:49]} Ne3+ {[%clk 00:12:48]} {[%emt 00:00:56]} 59. Kb4 {[%clk 00:06:23]}
{[%emt 00:00:13]} Nc2+ {[%clk 00:13:12]} {[%emt 00:00:06]} 60. Ka4 {[%clk
00:06:15]} {[%emt 00:00:38]} Nd4 {[%clk 00:13:37]} {[%emt 00:00:05]} 61. Nd5+
{[%clk 00:06:36]} {[%emt 00:00:08]} Kc5 {[%clk 00:13:44]} {[%emt 00:00:23]} 62.
Nc3 {[%clk 00:06:51]} {[%emt 00:00:15]} Nxb5 {[%clk 00:14:07]} {[%emt
00:00:07]} 1/2-1/2

[Event "NJSK 2023 Jeugd C"]
[Site "Almelo, Netherlands"]
[Date "2023.05.04"]
[Round "7.6"]
[White "Katpatal, Akshaj"]
[Black "Aravindhan, Achyuth"]
[Result "1/2-1/2"]
[TimeControl "90min/40moves + 30min + 30sec/move"]
[WhiteElo "1840"]
[BlackElo "1833"]

1. e4 {[%clk 01:30:58]} c5 {[%clk 01:26:25]} {[%emt 00:04:36]} 2. Nf3 {[%clk
01:31:17]} {[%emt 00:00:08]} Nc6 {[%clk 01:26:44]} {[%emt 00:00:14]} 3. d4
{[%clk 01:31:39]} {[%emt 00:00:07]} cxd4 {[%clk 01:27:10]} {[%emt 00:00:05]} 4.
Nxd4 {[%clk 01:32:02]} {[%emt 00:00:05]} Nf6 {[%clk 01:27:38]} {[%emt
00:00:04]} 5. Nc3 {[%clk 01:32:23]} {[%emt 00:00:08]} e5 {[%clk 01:28:08]} 6.
Nxc6 {[%clk 01:32:34]} {[%emt 00:00:19]} bxc6 {[%clk 01:28:37]} {[%emt
00:00:01]} 7. Bc4 {[%clk 01:32:48]} {[%emt 00:00:16]} Bb4 {[%clk 01:29:05]}
{[%emt 00:00:02]} 8. Bg5 {[%clk 01:33:05]} {[%emt 00:00:12]} h6 {[%clk
01:29:29]} {[%emt 00:00:07]} 9. Bxf6 {[%clk 01:33:19]} {[%emt 00:00:16]} Qxf6
{[%clk 01:29:52]} {[%emt 00:00:07]} 10. O-O {[%clk 01:33:43]} {[%emt 00:00:06]}
O-O {[%clk 01:30:12]} {[%emt 00:00:10]} 11. Ne2 {[%clk 01:34:05]} {[%emt
00:00:08]} Rd8 {[%clk 01:30:29]} {[%emt 00:00:13]} 12. f4 {[%clk 01:34:25]}
{[%emt 00:00:09]} Qe7 {[%clk 01:19:57]} {[%emt 00:11:03]} 13. Bb3 {[%clk
01:18:22]} {[%emt 00:16:32]} d5 {[%clk 01:11:51]} {[%emt 00:08:35]} 14. exd5
{[%clk 01:18:40]} {[%emt 00:00:13]} cxd5 {[%clk 01:12:12]} {[%emt 00:00:09]} 15.
Kh1 {[%clk 01:19:04]} {[%emt 00:00:06]} Bb7 {[%clk 01:10:04]} {[%emt 00:02:39]}
16. c3 {[%clk 01:07:02]} {[%emt 00:12:32]} Bc5 {[%clk 00:52:16]} {[%emt
00:18:18]} 17. fxe5 {[%clk 01:05:05]} {[%emt 00:02:27]} Qxe5 {[%clk 00:51:06]}
{[%emt 00:01:38]} 18. Nd4 {[%clk 01:00:38]} {[%emt 00:04:58]} Bd6 {[%clk
00:50:36]} {[%emt 00:00:59]} 19. Nf3 {[%clk 01:01:02]} {[%emt 00:00:06]} Qh5
{[%clk 00:50:56]} {[%emt 00:00:11]} 20. Qd4 {[%clk 01:00:32]} {[%emt 00:01:00]}
Re8 {[%clk 00:47:45]} {[%emt 00:03:41]} 21. Rae1 {[%clk 00:54:45]} {[%emt
00:06:17]} Re4 {[%clk 00:35:44]} {[%emt 00:12:29]} 22. Rxe4 {[%clk 00:53:08]}
{[%emt 00:02:09]} dxe4 {[%clk 00:35:10]} {[%emt 00:01:04]} 23. Qxd6 {[%clk
00:53:32]} {[%emt 00:00:05]} exf3 {[%clk 00:35:33]} {[%emt 00:00:08]} 24. gxf3
{[%clk 00:53:38]} {[%emt 00:00:24]} Bxf3+ {[%clk 00:33:02]} {[%emt 00:03:00]}
25. Kg1 {[%clk 00:54:01]} {[%emt 00:00:08]} Re8 {[%clk 00:30:48]} {[%emt
00:02:43]} 26. Qg3 {[%clk 00:49:16]} {[%emt 00:05:14]} Bd5 {[%clk 00:28:15]}
{[%emt 00:03:04]} 27. Bxd5 {[%clk 00:46:28]} {[%emt 00:03:18]} Qxd5 {[%clk
00:28:27]} {[%emt 00:00:19]} 28. b3 {[%clk 00:32:55]} {[%emt 00:14:04]} Re6
{[%clk 00:22:09]} {[%emt 00:06:46]} 29. Qf3 {[%clk 00:30:54]} {[%emt 00:02:30]}
Rg6+ {[%clk 00:22:15]} {[%emt 00:00:24]} 30. Kh1 {[%clk 00:31:17]} {[%emt
00:00:08]} Qd2 {[%clk 00:20:47]} {[%emt 00:01:58]} 31. Qxf7+ {[%clk 00:23:00]}
{[%emt 00:08:48]} Kh7 {[%clk 00:21:00]} {[%emt 00:00:17]} 32. Rg1 {[%clk
00:18:15]} {[%emt 00:05:15]} 1/2-1/2

[Event "NJSK 2023 Jeugd C"]
[Site "Almelo, Netherlands"]
[Date "2023.05.04"]
[Round "7.7"]
[White "Chua, Ethan"]
[Black "Terlouw, Wouter"]
[Result "0-1"]
[TimeControl "90min/40moves + 30min + 30sec/move"]
[WhiteElo "1776"]
[BlackElo "1923"]

1. e4 {[%clk 01:30:57]} {[%emt 00:00:03]} c5 {[%clk 01:30:56]} {[%emt
00:00:05]} 2. Nf3 {[%clk 01:31:24]} {[%emt 00:00:03]} g6 {[%clk 01:31:21]}
{[%emt 00:00:04]} 3. d4 {[%clk 01:31:50]} {[%emt 00:00:04]} cxd4 {[%clk
01:31:46]} {[%emt 00:00:05]} 4. Nxd4 {[%clk 01:32:16]} {[%emt 00:00:04]} Bg7
{[%clk 01:32:12]} {[%emt 00:00:04]} 5. Nc3 {[%clk 01:32:25]} {[%emt 00:00:22]}
Nc6 {[%clk 01:32:34]} {[%emt 00:00:07]} 6. Be3 {[%clk 01:32:51]} {[%emt
00:00:04]} Nf6 {[%clk 01:32:56]} {[%emt 00:00:09]} 7. f3 {[%clk 01:33:17]}
{[%emt 00:00:04]} O-O {[%clk 01:33:15]} {[%emt 00:00:10]} 8. Qd2 {[%clk
01:33:42]} {[%emt 00:00:04]} d5 {[%clk 01:33:33]} {[%emt 00:00:13]} 9. Nxc6
{[%clk 01:33:10]} {[%emt 00:01:02]} bxc6 {[%clk 01:33:57]} {[%emt 00:00:06]} 10.
e5 {[%clk 01:33:33]} {[%emt 00:00:07]} Nd7 {[%clk 01:34:11]} {[%emt 00:00:16]}
11. f4 {[%clk 01:33:59]} {[%emt 00:00:04]} e6 {[%clk 01:34:19]} {[%emt
00:00:22]} 12. Be2 {[%clk 01:32:56]} {[%emt 00:01:33]} c5 {[%clk 01:33:29]}
{[%emt 00:01:20]} 13. Nb5 {[%clk 01:32:38]} {[%emt 00:00:48]} Ba6 {[%clk
01:31:13]} {[%emt 00:02:46]} 14. O-O {[%clk 01:28:57]} {[%emt 00:04:09]} Bb7
{[%clk 01:26:00]} {[%emt 00:05:44]} 15. Bf3 {[%clk 01:26:31]} {[%emt 00:02:56]}
Qb6 {[%clk 01:24:26]} {[%emt 00:02:05]} 16. Nd6 {[%clk 01:25:39]} {[%emt
00:01:23]} Ba6 {[%clk 01:22:41]} {[%emt 00:02:12]} 17. c4 {[%clk 01:22:23]}
{[%emt 00:03:48]} Rad8 {[%clk 01:17:27]} {[%emt 00:05:44]} 18. cxd5 {[%clk
01:20:06]} {[%emt 00:02:48]} Bxf1 {[%clk 01:14:48]} {[%emt 00:03:09]} 19. dxe6
{[%clk 01:20:19]} {[%emt 00:00:17]} fxe6 {[%clk 01:14:00]} {[%emt 00:01:18]} 20.
Rxf1 {[%clk 01:13:17]} {[%emt 00:07:32]} Nxe5 {[%clk 01:08:17]} {[%emt
00:06:13]} 21. fxe5 {[%clk 01:13:05]} {[%emt 00:00:42]} Bxe5 {[%clk 01:08:31]}
{[%emt 00:00:16]} 22. Nc4 {[%clk 01:13:22]} {[%emt 00:00:13]} Rxd2 {[%clk
01:00:47]} {[%emt 00:08:15]} 23. Nxb6 {[%clk 01:13:35]} {[%emt 00:00:17]} Bd4
{[%clk 01:01:08]} {[%emt 00:00:07]} 24. Bxd4 {[%clk 01:11:24]} {[%emt
00:02:42]} Rxd4 {[%clk 01:01:04]} {[%emt 00:00:34]} 25. Na8 {[%clk 01:11:51]}
{[%emt 00:00:04]} Rd7 {[%clk 01:00:03]} {[%emt 00:01:29]} 26. Rc1 {[%clk
01:09:28]} {[%emt 00:02:53]} Rc8 {[%clk 00:57:48]} {[%emt 00:02:45]} 27. Rc4
{[%clk 01:08:12]} {[%emt 00:01:46]} Rd4 {[%clk 00:55:24]} {[%emt 00:02:55]} 28.
Rc2 {[%clk 01:01:49]} {[%emt 00:06:53]} g5 {[%clk 00:49:23]} {[%emt 00:06:30]}
29. h3 {[%clk 01:01:19]} {[%emt 00:01:00]} h5 {[%clk 00:49:20]} {[%emt
00:00:34]} 30. Kf2 {[%clk 00:57:32]} {[%emt 00:04:17]} Kf7 {[%clk 00:39:55]}
{[%emt 00:09:55]} 31. Bxh5+ {[%clk 00:57:07]} {[%emt 00:00:54]} Ke7 {[%clk
00:39:40]} {[%emt 00:00:46]} 32. Bf3 {[%clk 00:57:24]} {[%emt 00:00:13]} e5
{[%clk 00:39:39]} {[%emt 00:00:31]} 33. Ke3 {[%clk 00:57:06]} {[%emt 00:00:47]}
Kd6 {[%clk 00:39:52]} {[%emt 00:00:15]} 34. Rd2 {[%clk 00:55:54]} {[%emt
00:01:44]} Rb8 {[%clk 00:38:37]} {[%emt 00:01:45]} 35. b3 {[%clk 00:55:54]}
{[%emt 00:00:31]} Re8 {[%clk 00:36:57]} {[%emt 00:02:06]} 36. Be4 {[%clk
00:44:12]} {[%emt 00:12:15]} Rf8 {[%clk 00:35:17]} {[%emt 00:02:08]} 37. Bf3
{[%clk 00:43:47]} {[%emt 00:00:57]} Rff4 {[%clk 00:34:50]} {[%emt 00:00:56]} 38.
Bb7 {[%clk 00:41:56]} {[%emt 00:02:23]} Kd7 {[%clk 00:26:23]} {[%emt 00:08:55]}
39. g3 {[%clk 00:35:48]} {[%emt 00:06:41]} Rf1 {[%clk 00:26:35]} {[%emt
00:00:15]} 40. Rc2 {[%clk 00:35:16]} {[%emt 00:01:05]} Kd6 {[%clk 00:26:44]}
{[%emt 00:00:21]} 41. Bg2 {[%clk 00:34:33]} {[%emt 00:01:13]} Rf8 {[%clk
00:26:54]} {[%emt 00:00:16]} 42. Rc4 {[%clk 00:27:10]} {[%emt 00:07:56]} Rxc4
{[%clk 00:25:36]} {[%emt 00:01:48]} 43. bxc4 {[%clk 00:27:35]} {[%emt
00:00:05]} Rb8 {[%clk 00:25:58]} {[%emt 00:00:08]} 44. Bf3 {[%clk 00:26:54]}
{[%emt 00:01:11]} Rb2 {[%clk 00:26:04]} {[%emt 00:00:23]} 45. h4 {[%clk
00:27:11]} {[%emt 00:00:14]} gxh4 {[%clk 00:25:53]} {[%emt 00:00:41]} 46. gxh4
{[%clk 00:27:37]} {[%emt 00:00:05]} Rxa2 {[%clk 00:25:59]} {[%emt 00:00:23]} 47.
h5 {[%clk 00:27:47]} {[%emt 00:00:20]} Rh2 {[%clk 00:25:43]} {[%emt 00:00:45]}
48. Bg4 {[%clk 00:26:25]} {[%emt 00:01:52]} Rh4 {[%clk 00:23:44]} {[%emt
00:02:30]} 49. Kf3 {[%clk 00:25:49]} {[%emt 00:01:05]} e4+ {[%clk 00:24:01]}
{[%emt 00:00:15]} 50. Kg3 {[%clk 00:26:08]} {[%emt 00:00:10]} Rh1 {[%clk
00:24:20]} {[%emt 00:00:09]} 51. Kg2 {[%clk 00:25:50]} {[%emt 00:00:50]} Rb1
{[%clk 00:24:14]} {[%emt 00:00:36]} 52. Bf5 {[%clk 00:23:32]} {[%emt 00:02:49]}
Rb8 {[%clk 00:23:19]} {[%emt 00:01:23]} 53. Bxe4 {[%clk 00:23:49]} {[%emt
00:00:15]} a5 {[%clk 00:23:41]} {[%emt 00:00:09]} 54. h6 {[%clk 00:20:20]}
{[%emt 00:03:59]} a4 {[%clk 00:24:07]} {[%emt 00:00:04]} 55. h7 {[%clk
00:20:25]} {[%emt 00:00:25]} a3 {[%clk 00:24:32]} {[%emt 00:00:05]} 56. Bb1
{[%clk 00:20:38]} {[%emt 00:00:16]} Rxa8 {[%clk 00:24:56]} {[%emt 00:00:06]} 57.
Kf2 {[%clk 00:20:54]} {[%emt 00:00:13]} Rh8 {[%clk 00:25:19]} {[%emt 00:00:08]}
58. Ke3 {[%clk 00:21:06]} {[%emt 00:00:18]} Rxh7 {[%clk 00:25:39]} {[%emt
00:00:10]} 59. Kd2 {[%clk 00:21:22]} {[%emt 00:00:13]} a2 {[%clk 00:25:53]}
{[%emt 00:00:17]} 0-1